bitfinex/quotes_BTCUSD_20240810
["timestamp","ask_amount","ask_price","bid_price","bid_amount"]
[1723307000113,0.000931,60726.0,60725.0,1.78867065]
[1723307001138,0.000931,60726.0,60725.0,1.77867065]
[1723307001344,0.000931,60726.0,60725.0,1.62067065]
[1723307001546,0.000931,60726.0,60725.0,1.57739294]
[1723307001771,0.000931,60726.0,60725.0,1.36524576]
[1723307002279,0.000931,60726.0,60725.0,1.36528214]
[1723307003006,0.000931,60726.0,60725.0,1.36455588]
[1723307003521,0.000931,60726.0,60725.0,1.52849128]
[1723307003738,0.000931,60726.0,60725.0,1.02905615]
[1723307003935,0.000931,60726.0,60725.0,1.07841971]
[1723307005288,0.000931,60726.0,60725.0,1.02905615]
[1723307005446,0.000931,60726.0,60725.0,1.5035442]
[1723307005647,0.000931,60726.0,60725.0,1.5265442]
[1723307005845,0.000931,60726.0,60725.0,1.64994249]
[1723307006270,0.000931,60726.0,60725.0,1.47901686]
[1723307006472,0.000931,60726.0,60725.0,1.64993897]
[1723307006685,0.000931,60726.0,60725.0,1.28801542]
[1723307006874,0.000931,60726.0,60725.0,1.65045598]
[1723307009790,0.000931,60726.0,60725.0,1.65087217]
[1723307010653,0.000931,60726.0,60725.0,1.81554817]
[1723307010796,0.000931,60726.0,60725.0,1.69214988]
[1723307011644,0.000931,60726.0,60725.0,1.67014988]
[1723307013292,0.000931,60726.0,60725.0,1.67102855]
[1723307014603,0.000931,60726.0,60725.0,1.71302855]
[1723307015259,0.000931,60726.0,60725.0,1.67102855]
[1723307015841,0.000931,60726.0,60725.0,1.71302855]
[1723307016156,0.000931,60726.0,60725.0,1.65132855]
[1723307016355,0.000931,60726.0,60725.0,1.46665255]
[1723307016758,0.000931,60726.0,60725.0,1.46566203]
[1723307017008,0.000931,60726.0,60725.0,1.63033803]
[1723307017183,0.000931,60726.0,60725.0,0.99793487]
[1723307017383,0.000931,60726.0,60725.0,1.63033848]
[1723307018587,0.000931,60726.0,60725.0,1.75367978]
[1723307019592,0.000931,60726.0,60725.0,1.28594352]
[1723307019784,0.000931,60726.0,60725.0,1.63026895]
[1723307020495,0.000931,60726.0,60725.0,1.64026824]
[1723307020645,0.000931,60726.0,60725.0,1.65026824]
[1723307021105,0.000931,60726.0,60725.0,1.78986824]
[1723307021724,0.000931,60726.0,60725.0,1.72576824]
[1723307023837,0.000931,60726.0,60725.0,1.72695635]
[1723307024242,0.0001,60729.0,60728.0,0.636238]
[1723307024481,0.0001,60729.0,60728.0,1.84090625]
[1723307024686,0.0001,60729.0,60728.0,1.98891383]
[1723307024920,0.0001,60729.0,60728.0,2.15358183]
[1723307025464,0.0001,60729.0,60728.0,1.98891383]
[1723307025642,0.0001,60729.0,60728.0,1.84090625]
[1723307026153,0.0001,60729.0,60728.0,1.94392831]
[1723307026344,0.0001,60729.0,60728.0,1.95353642]
[1723307026707,0.0001,60729.0,60728.0,1.98153642]
[1723307027257,0.0001,60729.0,60728.0,1.56523153]
[1723307027457,0.0001,60729.0,60728.0,2.13105254]
[1723307027619,0.0001,60729.0,60728.0,1.98038454]
[1723307027819,0.0001,60729.0,60728.0,1.98056243]
[1723307030904,0.0001,60729.0,60728.0,1.44675109]
[1723307031053,0.0001,60729.0,60728.0,1.98162933]
[1723307031271,0.0001,60729.0,60728.0,1.91752933]
[1723307031458,0.000931,60729.0,60728.0,1.91752933]
[1723307033193,0.000931,60729.0,60728.0,1.87552933]
[1723307033520,0.000931,60729.0,60728.0,1.91752933]
[1723307036883,0.000931,60729.0,60728.0,1.88952933]
[1723307037262,0.000931,60729.0,60728.0,1.87552933]
[1723307037397,0.000931,60729.0,60728.0,1.91752933]
[1723307037827,0.000931,60729.0,60728.0,1.91743662]
[1723307038029,0.000931,60729.0,60728.0,1.95045662]
[1723307038237,0.00831,60750.0,60746.0,0.0279]
[1723307038436,0.00831,60750.0,60746.0,1.14432233]
[1723307038691,0.01217158,60747.0,60746.0,1.24632233]
[1723307038909,0.00831,60747.0,60746.0,1.24632233]
[1723307039253,0.00831,60747.0,60746.0,1.25632233]
[1723307039254,0.06931,60747.0,60746.0,1.25632233]
[1723307039455,0.14701,60747.0,60746.0,1.25627181]
[1723307039758,0.14701,60747.0,60746.0,1.24427181]
[1723307039977,0.14701,60747.0,60746.0,1.12897803]
[1723307040388,0.14701,60747.0,60746.0,1.13097803]
[1723307040590,0.14701,60747.0,60746.0,1.14497803]
[1723307040967,0.14701,60747.0,60746.0,0.99800614]
[1723307041135,0.14701,60747.0,60746.0,1.13072721]
[1723307041348,0.14701,60747.0,60746.0,1.14472721]
[1723307041549,0.14701,60747.0,60746.0,1.16772721]
[1723307041768,0.14701,60747.0,60746.0,1.15372721]
[1723307042247,0.14701,60747.0,60746.0,1.19151206]
[1723307042446,0.14701,60747.0,60746.0,1.20151206]
[1723307042751,0.14701,60747.0,60746.0,1.01838684]
[1723307042954,0.14701,60747.0,60746.0,1.10740199]
[1723307043319,0.14701,60747.0,60746.0,0.94278299]
[1723307043526,0.14701,60747.0,60746.0,0.67816399]
[1723307043755,0.14701,60747.0,60746.0,0.71006192]
[1723307043980,0.14701,60747.0,60746.0,0.58452338]
[1723307044336,0.14701,60747.0,60746.0,0.67732338]
[1723307044535,0.14701,60747.0,60746.0,0.82794238]
[1723307044940,0.14701,60747.0,60746.0,0.99256138]
[1723307045806,0.14701,60747.0,60746.0,1.00656138]
[1723307046382,0.14701,60747.0,60746.0,0.76314238]
[1723307046585,0.14701,60747.0,60746.0,0.59852338]
[1723307047153,0.14701,60747.0,60746.0,0.46664292]
[1723307047357,0.14701,60747.0,60746.0,0.74909693]
[1723307047564,0.14701,60747.0,60746.0,0.61726192]
[1723307047771,0.14701,60747.0,60746.0,0.59936933]
[1723307048141,0.14701,60747.0,60746.0,0.42075033]
[1723307049357,0.14701,60747.0,60746.0,0.43475033]
[1723307049718,0.14701,60747.0,60746.0,0.27013133]
[1723307050163,0.14701,60747.0,60746.0,0.0559]
[1723307050365,0.229318,60747.0,60746.0,0.0559]
[1723307050565,0.18372589,60747.0,60746.0,0.0559]
[1723307050739,0.18706736,60747.0,60746.0,0.0559]
[1723307050955,0.26937536,60747.0,60746.0,0.0559]
[1723307051318,0.26937536,60747.0,60746.0,0.0279]
[1723307051532,0.43399236,60747.0,60746.0,0.0419]
[1723307051703,0.43399236,60747.0,60746.0,0.0559]
[1723307052125,0.26937536,60747.0,60746.0,0.0279]
[1723307052444,0.26937536,60747.0,60746.0,0.0499]
[1723307052875,0.2694,60747.0,60746.0,0.0379]
[1723307053088,0.2694,60747.0,60746.0,0.0449]
[1723307053746,0.598634,60747.0,60746.0,0.017]
[1723307053905,0.434017,60747.0,60746.0,0.017]
[1723307054115,0.39727647,60747.0,60746.0,0.017]
[1723307054314,0.43406734,60747.0,60746.0,0.007]
[1723307054709,0.59868434,60747.0,60746.0,0.005]
[1723307054930,0.43406734,60747.0,60746.0,0.005]
[1723307055134,0.43406734,60747.0,60746.0,0.017]
[1723307055360,0.43406734,60747.0,60746.0,0.012]
[1723307055546,0.246933,60745.0,60744.0,0.0079]
[1723307055747,0.42382387,60745.0,60744.0,0.0079]
[1723307055950,0.26253396,60745.0,60744.0,0.0079]
[1723307056741,0.42715596,60745.0,60744.0,0.0079]
[1723307057655,0.42703651,60745.0,60744.0,0.0079]
[1723307058060,0.39036509,60745.0,60744.0,0.0079]
[1723307058263,0.26242064,60745.0,60744.0,0.0079]
[1723307059028,0.42704086,60745.0,60744.0,0.0079]
[1723307059240,0.26241886,60745.0,60744.0,0.0239]
[1723307059641,0.59166286,60745.0,60744.0,0.016]
[1723307060201,0.59163603,60745.0,60744.0,0.016]
[1723307061208,0.59162022,60745.0,60744.0,0.016]
[1723307067713,0.26237622,60745.0,60744.0,0.016]
[1723307068342,0.26237289,60745.0,60744.0,0.016]
[1723307069957,0.22574309,60745.0,60744.0,0.026]
[1723307070165,0.26232466,60745.0,60744.0,0.016]
[1723307070366,0.42694666,60745.0,60744.0,0.016]
[1723307070572,0.42694666,60745.0,60744.0,0.026]
[1723307070788,0.42694666,60745.0,60744.0,0.019]
[1723307071038,0.42694666,60745.0,60744.0,0.01]
[1723307071251,0.42694666,60745.0,60744.0,0.018]
[1723307071437,0.26232466,60745.0,60744.0,0.028]
[1723307071734,0.26232466,60745.0,60744.0,0.018]
[1723307072024,0.26232466,60745.0,60744.0,0.008]
[1723307072813,0.42694666,60745.0,60744.0,0.018]
[1723307073288,0.42694666,60745.0,60744.0,0.008]
[1723307073532,0.42694666,60745.0,60742.0,0.01]
[1723307073533,0.164625,60744.0,60742.0,0.01]
[1723307073689,0.34324203,60743.0,60742.0,0.01]
[1723307073877,0.26866785,60743.0,60740.0,0.0079]
[1723307074073,0.11428157,60742.0,60740.0,0.090217]
[1723307074291,0.03658157,60741.0,60740.0,0.090217]
[1723307074495,0.03658157,60741.0,60740.0,0.0079]
[1723307074697,0.03970225,60741.0,60740.0,0.0079]
[1723307075140,0.00312068,60741.0,60740.0,0.0079]
[1723307075454,0.0396901,60741.0,60740.0,0.0079]
[1723307075817,0.0396901,60741.0,60740.0,0.090218]
[1723307076248,0.12153656,60741.0,60740.0,0.110218]
[1723307076447,0.08496714,60741.0,60740.0,0.110218]
[1723307076650,0.12149578,60741.0,60740.0,0.110218]
[1723307076850,0.12149578,60741.0,60740.0,0.090218]
[1723307077061,0.12149578,60741.0,60740.0,0.110218]
[1723307077552,0.12149578,60741.0,60740.0,0.121218]
[1723307077755,0.12149578,60741.0,60740.0,0.135218]
[1723307077971,0.12149578,60741.0,60740.0,0.121218]
[1723307078181,0.12149578,60741.0,60740.0,0.110218]
[1723307078381,0.12149578,60741.0,60740.0,0.124218]
[1723307078708,0.26399578,60741.0,60740.0,0.027]
[1723307079036,0.26399578,60741.0,60740.0,0.013]
[1723307079185,0.26399578,60741.0,60739.0,0.0079]
[1723307079346,0.03652864,60740.0,60739.0,0.0079]
[1723307079547,0.00311648,60740.0,60739.0,0.0079]
[1723307079982,0.03971438,60740.0,60739.0,0.0079]
[1723307080180,0.03971438,60740.0,60739.0,0.0279]
[1723307081014,0.00311648,60740.0,60739.0,0.0279]
[1723307081438,0.00311648,60740.0,60739.0,0.16031305]
[1723307081612,0.03970514,60740.0,60739.0,0.0279]
[1723307082068,0.03970514,60740.0,60739.0,0.0559]
[1723307082414,0.03970514,60740.0,60739.0,0.18823292]
[1723307082840,0.18220514,60740.0,60739.0,0.0559]
[1723307087580,0.14561648,60740.0,60739.0,0.0559]
[1723307087780,0.18220671,60740.0,60739.0,0.0559]
[1723307087979,0.18220671,60740.0,60739.0,0.0359]
[1723307088180,0.18220671,60740.0,60739.0,0.0559]
[1723307089010,0.18220671,60740.0,60739.0,0.0359]
[1723307089166,0.03970671,60740.0,60739.0,0.41526367]
[1723307089378,0.03970671,60740.0,60739.0,0.43526367]
[1723307089582,0.03659023,60740.0,60739.0,0.43526367]
[1723307089783,0.0666,60742.0,60741.0,0.02]
[1723307090029,0.10633004,60742.0,60741.0,0.02]
[1723307090585,0.10633004,60742.0,60741.0,0.0279]
[1723307090929,0.10633004,60742.0,60741.0,0.110216]
[1723307091323,0.10634921,60742.0,60741.0,0.110216]
[1723307091503,0.10634921,60742.0,60741.0,0.122216]
[1723307091703,0.18434963,60742.0,60741.0,0.122216]
[1723307091904,0.03974963,60742.0,60741.0,0.122216]
[1723307092133,0.03974963,60742.0,60741.0,0.116216]
[1723307092372,0.03974963,60742.0,60741.0,0.136216]
[1723307092506,0.03974963,60742.0,60741.0,0.0539]
[1723307092938,0.03967313,60742.0,60741.0,0.0539]
[1723307093185,0.20051959,60742.0,60741.0,0.0539]
[1723307093387,0.20051959,60742.0,60741.0,0.036]
[1723307093523,0.34843459,60742.0,60741.0,0.026]
[1723307093979,0.26611959,60742.0,60741.0,0.026]
[1723307095054,0.34843459,60742.0,60741.0,0.026]
[1723307095197,0.34843459,60742.0,60741.0,0.036]
[1723307095740,0.26658813,60742.0,60741.0,0.036]
[1723307096237,0.26658813,60742.0,60741.0,0.0539]
[1723307098236,0.26669912,60742.0,60741.0,0.0539]
[1723307099656,0.26753012,60742.0,60741.0,0.0539]
[1723307100400,0.3415262,60742.0,60741.0,0.0539]
[1723307101010,0.3048832,60742.0,60741.0,0.0539]
[1723307101231,0.34151268,60742.0,60741.0,0.0539]
[1723307101579,0.3048832,60742.0,60741.0,0.0539]
[1723307101786,0.3415126,60742.0,60741.0,0.0539]
[1723307102567,0.18520152,60742.0,60741.0,0.0539]
[1723307102752,0.23451902,60742.0,60741.0,0.0539]
[1723307103201,0.1852046,60742.0,60741.0,0.0539]
[1723307103650,0.23451778,60742.0,60741.0,0.0539]
[1723307104207,0.18521073,60742.0,60741.0,0.0539]
[1723307104582,0.19788533,60742.0,60741.0,0.0539]
[1723307104811,0.23450446,60742.0,60741.0,0.0539]
[1723307105151,0.23450446,60742.0,60741.0,0.136216]
[1723307105152,0.04059125,60742.0,60741.0,0.136216]
[1723307105285,0.04050046,60742.0,60741.0,0.26888324]
[1723307106650,0.04050046,60742.0,60741.0,0.81653116]
[1723307106849,0.00397212,60742.0,60741.0,0.98116416]
[1723307107004,0.00397212,60742.0,60741.0,1.14579716]
[1723307107005,0.000831,60742.0,60741.0,1.14579716]
[1723307109580,0.000831,60742.0,60741.0,1.19523033]
[1723307109778,0.000831,60742.0,60741.0,1.14579716]
[1723307110182,0.000831,60742.0,60741.0,1.20512555]
[1723307110606,0.000831,60742.0,60741.0,1.20712555]
[1723307110819,0.000831,60742.0,60741.0,1.20512555]
[1723307110935,0.000831,60742.0,60741.0,1.20712555]
[1723307111137,0.000831,60742.0,60741.0,1.14377304]
[1723307111333,0.000831,60742.0,60741.0,1.0111058]
[1723307111539,0.000831,60742.0,60741.0,1.15846557]
[1723307111817,0.000831,60742.0,60741.0,1.15646557]
[1723307112500,0.000831,60742.0,60741.0,1.14446557]
[1723307112798,0.000831,60742.0,60741.0,1.15646557]
[1723307113234,0.000831,60742.0,60741.0,1.14246557]
[1723307113430,0.000831,60742.0,60741.0,1.13046557]
[1723307113617,0.000831,60742.0,60741.0,1.14446557]
[1723307113927,0.000831,60742.0,60741.0,1.15846557]
[1723307118265,0.000831,60742.0,60741.0,0.76465669]
[1723307118467,0.08267746,60742.0,60741.0,0.76465669]
[1723307118826,0.08580727,60742.0,60741.0,0.76465669]
[1723307119725,0.00396081,60742.0,60741.0,0.76465669]
[1723307119930,0.00396081,60742.0,60741.0,0.84345669]
[1723307120096,0.000831,60742.0,60741.0,0.84345669]
[1723307120469,0.000831,60742.0,60741.0,0.71009692]
[1723307120669,0.000831,60742.0,60741.0,0.84302172]
[1723307121489,0.000831,60742.0,60741.0,0.84360456]
[1723307122086,0.000831,60742.0,60741.0,0.84360263]
[1723307123037,0.000831,60742.0,60741.0,0.96380263]
[1723307123187,0.000831,60742.0,60741.0,0.98380263]
[1723307123384,0.000831,60742.0,60741.0,1.14843563]
[1723307123610,0.000831,60742.0,60741.0,1.12843563]
[1723307123808,0.000831,60742.0,60741.0,0.96380263]
[1723307124007,0.000831,60742.0,60741.0,1.14843563]
[1723307124212,0.000831,60742.0,60741.0,1.24843563]
[1723307124546,0.000831,60742.0,60741.0,1.22843563]
[1723307124785,0.000831,60742.0,60741.0,1.24843563]
[1723307125060,0.000831,60742.0,60741.0,1.24885358]
[1723307126651,0.000831,60742.0,60741.0,1.27185358]
[1723307127622,0.000831,60742.0,60741.0,1.25185358]
[1723307127821,0.000831,60742.0,60741.0,1.27385358]
[1723307128063,0.000831,60742.0,60741.0,1.25185358]
[1723307128281,0.000831,60742.0,60741.0,1.27385358]
[1723307128508,0.000831,60742.0,60741.0,1.27373632]
[1723307128929,0.000831,60742.0,60741.0,1.43836932]
[1723307129066,0.000831,60742.0,60741.0,1.41636932]
[1723307129676,0.000831,60742.0,60741.0,1.48262545]
[1723307129876,0.000831,60742.0,60741.0,1.31799245]
[1723307130277,0.000831,60742.0,60741.0,1.27373632]
[1723307130771,0.000831,60742.0,60741.0,1.27173632]
[1723307131405,0.000831,60742.0,60741.0,1.27373632]
[1723307131565,0.000831,60742.0,60741.0,1.25173632]
[1723307131902,0.000831,60742.0,60741.0,1.43651578]
[1723307132117,0.000831,60742.0,60741.0,1.27188278]
[1723307132547,0.000831,60742.0,60741.0,1.2721589]
[1723307132936,0.000831,60742.0,60741.0,1.2741589]
[1723307133140,0.000831,60742.0,60741.0,1.4387919]
[1723307133400,0.000831,60742.0,60741.0,1.2741589]
[1723307133607,0.000831,60742.0,60741.0,1.67736231]
[1723307133821,0.000831,60742.0,60741.0,1.84199445]
[1723307134997,0.000831,60742.0,60741.0,1.925921]
[1723307135197,0.000831,60742.0,60741.0,1.903921]
[1723307135400,0.000831,60742.0,60741.0,1.90127477]
[1723307135601,0.000831,60742.0,60741.0,1.903921]
[1723307135832,0.000831,60742.0,60741.0,1.90127865]
[1723307136044,0.000831,60742.0,60741.0,1.87928028]
[1723307136202,0.000831,60742.0,60741.0,1.82999445]
[1723307136370,0.000831,60742.0,60741.0,1.925921]
[1723307136768,0.000831,60742.0,60741.0,1.90128346]
[1723307136965,0.000831,60742.0,60741.0,1.85199445]
[1723307137171,0.000831,60742.0,60741.0,1.90128575]
[1723307138021,0.000831,60742.0,60741.0,1.85199445]
[1723307138196,0.000831,60742.0,60741.0,1.82999445]
[1723307138794,0.000831,60742.0,60741.0,1.87199445]
[1723307138982,0.000831,60742.0,60741.0,1.87200573]
[1723307139326,0.000831,60742.0,60741.0,1.83000573]
[1723307139529,0.000831,60742.0,60741.0,1.82999749]
[1723307141015,0.000831,60742.0,60741.0,1.95323826]
[1723307141553,0.000831,60742.0,60741.0,1.29256292]
[1723307141760,0.000831,60745.0,60744.0,0.812007]
[1723307141956,0.000831,60745.0,60744.0,1.76597667]
[1723307142227,0.000831,60745.0,60744.0,1.91037866]
[1723307143013,0.000831,60745.0,60744.0,1.60986778]
[1723307143222,0.000831,60745.0,60744.0,1.73304756]
[1723307143420,0.000831,60745.0,60744.0,1.86716069]
[1723307143621,0.000831,60745.0,60744.0,1.82516069]
[1723307144143,0.000831,60745.0,60744.0,1.73616483]
[1723307144369,0.000831,60745.0,60744.0,2.12517119]
[1723307144578,0.00831,60750.0,60748.0,0.0599]
[1723307144783,0.00831,60750.0,60749.0,0.363905]
[1723307144989,0.00831,60750.0,60749.0,1.05546906]
[1723307145219,0.00831,60750.0,60749.0,1.30916392]
[1723307145335,0.00831,60750.0,60749.0,1.34218392]
[1723307145531,0.00831,60750.0,60749.0,1.46534019]
[1723307145972,0.00831,60750.0,60749.0,1.62995119]
[1723307146214,0.00831,60750.0,60749.0,1.50679492]
[1723307146442,0.00831,60750.0,60749.0,1.51083725]
[1723307146889,0.00831,60750.0,60749.0,1.57708353]
[1723307147095,0.00831,60750.0,60749.0,1.87679719]
[1723307147689,0.00831,60750.0,60749.0,1.88656082]
[1723307147900,0.00831,60750.0,60749.0,1.90090321]
[1723307148089,0.00831,60750.0,60749.0,1.87290321]
[1723307148265,0.00831,60750.0,60749.0,1.90090321]
[1723307148462,0.00831,60750.0,60749.0,1.85890321]
[1723307148891,0.00831,60750.0,60749.0,1.87315032]
[1723307149110,0.00831,60750.0,60749.0,1.97160021]
[1723307149308,0.00831,60750.0,60749.0,2.03994851]
[1723307149483,0.00831,60750.0,60749.0,1.91733751]
[1723307150051,0.00831,60750.0,60749.0,1.91722787]
[1723307150794,0.00831,60750.0,60749.0,1.91713944]
[1723307150995,0.00831,60750.0,60749.0,2.08175044]
[1723307151421,0.00831,60750.0,60749.0,1.91713944]
[1723307151623,0.00831,60750.0,60749.0,2.03975044]
[1723307151866,0.00831,60750.0,60749.0,1.54455855]
[1723307152023,0.00831,60750.0,60749.0,1.57508461]
[1723307152226,0.00831,60750.0,60749.0,2.08183842]
[1723307152423,0.00831,60750.0,60749.0,2.03983842]
[1723307152847,0.00831,60750.0,60749.0,2.08183842]
[1723307153052,0.00831,60750.0,60749.0,1.91721174]
[1723307153707,0.00831,60750.0,60749.0,2.08182274]
[1723307153921,0.00831,60750.0,60749.0,1.91721174]
[1723307154066,0.00831,60750.0,60749.0,1.91738353]
[1723307154682,0.00831,60750.0,60749.0,1.85107465]
[1723307154872,0.00831,60750.0,60749.0,2.0819945]
[1723307155040,0.00831,60750.0,60749.0,2.08200155]
[1723307155252,0.00831,60750.0,60749.0,2.04000155]
[1723307155446,0.00831,60750.0,60749.0,2.08200155]
[1723307155646,0.00831,60750.0,60749.0,2.04000155]
[1723307156224,0.00831,60750.0,60749.0,2.18046138]
[1723307156591,0.00831,60761.0,60760.0,0.613933]
[1723307156792,0.00831,60761.0,60760.0,1.21322297]
[1723307156968,0.01146132,60761.0,60760.0,1.2815219]
[1723307157167,0.00831,60761.0,60760.0,1.2815219]
[1723307157406,0.00831,60761.0,60760.0,1.37980397]
[1723307157825,0.00831,60761.0,60760.0,1.61692122]
[1723307158042,0.00831,60761.0,60760.0,1.66614865]
[1723307158265,0.00831,60761.0,60760.0,1.90902965]
[1723307158387,0.00831,60761.0,60760.0,1.82176771]
[1723307158593,0.00831,60761.0,60760.0,1.90675718]
[1723307158796,0.00831,60761.0,60760.0,1.6017471]
[1723307159029,0.00831,60761.0,60760.0,1.97635031]
[1723307159209,0.00831,60790.0,60786.0,0.0279]
[1723307159390,0.14971,60787.0,60786.0,0.98062507]
[1723307159591,0.14971,60787.0,60786.0,0.83731407]
[1723307159896,0.14971,60787.0,60786.0,0.91611407]
[1723307160116,0.14971,60787.0,60786.0,1.08466734]
[1723307160330,0.14971,60787.0,60786.0,0.92015634]
[1723307160527,0.14971,60787.0,60786.0,1.08466734]
[1723307160992,0.14971,60787.0,60786.0,1.08062507]
[1723307161209,0.14971,60787.0,60786.0,1.08017113]
[1723307161409,0.14971,60787.0,60786.0,0.91566013]
[1723307161619,0.14971,60787.0,60786.0,0.92966013]
[1723307161964,0.14971,60787.0,60786.0,0.91566013]
[1723307162635,0.14971,60787.0,60786.0,0.94366013]
[1723307163345,0.14971,60787.0,60786.0,0.80979192]
[1723307167778,0.14971,60787.0,60786.0,0.97430292]
[1723307167979,0.14971,60787.0,60786.0,0.80979192]
[1723307168874,0.14971,60787.0,60786.0,0.97430292]
[1723307169079,0.07421,60787.0,60786.0,0.95430292]
[1723307169281,0.07421,60787.0,60786.0,1.08881567]
[1723307169485,0.00831,60787.0,60786.0,0.95430292]
[1723307169805,0.00831,60787.0,60786.0,0.97630292]
[1723307169949,0.00831,60787.0,60786.0,1.10881369]
[1723307170416,0.00831,60787.0,60786.0,1.11081369]
[1723307170607,0.00831,60787.0,60786.0,1.08281369]
[1723307170766,0.00831,60787.0,60786.0,1.08081369]
[1723307171377,0.00831,60787.0,60786.0,0.91630269]
[1723307171598,0.00831,60787.0,60786.0,0.91633587]
[1723307172201,0.00831,60787.0,60786.0,0.93033587]
[1723307172402,0.00831,60787.0,60786.0,1.10855813]
[1723307172603,0.00831,60787.0,60786.0,0.93004713]
[1723307172803,0.14781,60787.0,60786.0,0.93004713]
[1723307173368,0.14781,60787.0,60786.0,0.94404713]
[1723307173743,0.14781,60787.0,60786.0,0.21971492]
[1723307174045,0.230064,60787.0,60786.0,0.0559]
[1723307174250,0.23304103,60787.0,60786.0,0.0559]
[1723307174391,0.15078703,60787.0,60786.0,0.138155]
[1723307174591,0.15078703,60787.0,60786.0,0.0559]
[1723307175323,0.15078703,60787.0,60786.0,0.138155]
[1723307175525,0.15078703,60787.0,60786.0,0.0559]
[1723307175720,0.15078703,60787.0,60786.0,0.0279]
[1723307176046,0.15078703,60787.0,60786.0,0.138155]
[1723307176472,0.23304103,60787.0,60786.0,0.0559]
[1723307176699,0.39754903,60787.0,60786.0,0.0559]
[1723307176897,0.43350229,60787.0,60786.0,0.0559]
[1723307177796,0.26899429,60787.0,60786.0,0.0559]
[1723307177988,0.43350229,60787.0,60786.0,0.0559]
[1723307178323,0.26899429,60787.0,60786.0,0.0559]
[1723307178600,0.43350229,60787.0,60786.0,0.0559]
[1723307178803,0.39754903,60787.0,60786.0,0.0559]
[1723307178960,0.43351327,60787.0,60786.0,0.0419]
[1723307179164,0.43351327,60787.0,60786.0,0.0279]
[1723307179390,0.43351327,60787.0,60785.0,0.0079]
[1723307179391,0.550777,60786.0,60785.0,0.0079]
[1723307179563,0.58674124,60786.0,60785.0,0.0079]
[1723307179767,0.58969723,60786.0,60785.0,0.0079]
[1723307180167,0.58969723,60786.0,60782.0,0.02]
[1723307180168,0.1395,60780.0,60770.0,0.164553]
[1723307180396,0.1395,60772.0,60771.0,0.18381492]
[1723307180568,0.1395,60772.0,60771.0,0.16381492]
[1723307180755,0.14238982,60772.0,60771.0,0.18381492]
[1723307180947,0.14238982,60772.0,60771.0,0.16381492]
[1723307181276,0.14238982,60772.0,60771.0,0.18381492]
[1723307181477,0.14238982,60772.0,60771.0,0.16381492]
[1723307182613,0.14238982,60772.0,60771.0,0.43064292]
[1723307182837,0.14238982,60772.0,60771.0,0.41064292]
[1723307183084,0.1395,60772.0,60771.0,0.41064292]
[1723307183286,0.14243973,60772.0,60771.0,0.24609092]
[1723307183490,0.14243973,60772.0,60771.0,0.26009092]
[1723307183822,0.14243973,60772.0,60771.0,0.16381492]
[1723307184028,0.14243973,60772.0,60771.0,0.17581492]
[1723307184240,0.14243973,60772.0,60771.0,0.026]
[1723307184685,0.14243973,60772.0,60771.0,0.014]
[1723307185311,0.22471373,60772.0,60771.0,0.014]
[1723307186344,0.22471373,60772.0,60771.0,0.027]
[1723307186636,0.22471373,60772.0,60771.0,0.013]
[1723307186838,0.22471373,60772.0,60771.0,0.014]
[1723307187203,0.08521373,60772.0,60771.0,0.013]
[1723307187399,0.00293973,60772.0,60771.0,0.013]
[1723307187602,0.00293973,60772.0,60771.0,0.027]
[1723307187803,0.1402,60772.0,60771.0,0.027]
[1723307188050,0.225465,60772.0,60771.0,0.027]
[1723307189261,0.390014,60772.0,60771.0,0.027]
[1723307189639,0.225465,60772.0,60771.0,0.027]
[1723307190037,0.554563,60772.0,60771.0,0.027]
[1723307190240,0.59047161,60772.0,60771.0,0.027]
[1723307190411,0.554563,60772.0,60771.0,0.0267]
[1723307190569,0.390014,60772.0,60771.0,0.0267]
[1723307190977,0.16754,60772.0,60769.0,0.0009141]
[1723307191163,0.1402,60770.0,60769.0,0.0009141]
[1723307191623,0.14310384,60770.0,60769.0,0.0009141]
[1723307192444,0.22538084,60770.0,60769.0,0.0009141]
[1723307194258,0.38993484,60770.0,60769.0,0.0149141]
[1723307194461,0.22538084,60770.0,60769.0,0.0149141]
[1723307195042,0.22538084,60770.0,60769.0,0.0289141]
[1723307195430,0.14310384,60770.0,60769.0,0.0489141]
[1723307195781,0.14310384,60770.0,60769.0,0.0289141]
[1723307200297,0.22538084,60770.0,60769.0,0.0289141]
[1723307201228,0.14310384,60770.0,60769.0,0.0289141]
[1723307202017,0.14310384,60770.0,60769.0,0.0489141]
[1723307203447,0.17916102,60770.0,60769.0,0.0489141]
[1723307206539,0.17918876,60770.0,60769.0,0.0489141]
[1723307206742,0.17918882,60770.0,60769.0,0.0489141]
[1723307208311,0.22538084,60770.0,60769.0,0.0289141]
[1723307208519,0.26145354,60770.0,60769.0,0.0489141]
[1723307208871,0.17917654,60770.0,60769.0,0.0489141]
[1723307209359,0.26161475,60770.0,60769.0,0.0489141]
[1723307209559,0.26161475,60770.0,60769.0,0.0289141]
[1723307210177,0.17933775,60770.0,60769.0,0.0289141]
[1723307210789,0.17933775,60770.0,60769.0,0.0489141]
[1723307211147,0.17933775,60770.0,60769.0,0.0289141]
[1723307211349,0.26161475,60770.0,60769.0,0.0289141]
[1723307211562,0.42616875,60770.0,60769.0,0.0289141]
[1723307211984,0.42620932,60770.0,60769.0,0.0489141]
[1723307212389,0.42627403,60770.0,60769.0,0.0489141]
[1723307212626,0.26172003,60770.0,60769.0,0.0289141]
[1723307212950,0.26172003,60770.0,60769.0,0.0489141]
[1723307213640,0.22538084,60770.0,60769.0,0.0489141]
[1723307213789,0.2615837,60770.0,60769.0,0.0489141]
[1723307214001,0.4261377,60770.0,60769.0,0.0489141]
[1723307215468,0.2615837,60770.0,60769.0,0.0289141]
[1723307215692,0.26158541,60770.0,60769.0,0.0289141]
[1723307215848,0.26158541,60770.0,60769.0,0.0489141]
[1723307216263,0.26158541,60770.0,60769.0,0.0289141]
[1723307216682,0.22538084,60770.0,60769.0,0.0489141]
[1723307216944,0.2615421,60770.0,60769.0,0.0489141]
[1723307218163,0.00290384,60770.0,60769.0,0.21272902]
[1723307218361,0.00290384,60770.0,60769.0,0.45956402]
[1723307218362,0.03906554,60770.0,60769.0,0.45956402]
[1723307218563,0.03906554,60770.0,60769.0,0.57419855]
[1723307218747,0.0361617,60770.0,60769.0,0.57419855]
[1723307218951,0.000831,60771.0,60770.0,0.246831]